bitfinex-derivatives/quotes_SOLF0:USTF0_20260107
["timestamp","ask_amount","ask_price","bid_price","bid_amount"]
[1767778297292,6.5343,137.84,137.71,101.7365]
[1767778297496,6.5343,137.84,137.72,101.731]
[1767778297697,6.5343,137.84,137.73,108.2629]
[1767778297992,6.5333,137.86,137.75,0.33025793]
[1767778298993,6.5333,137.86,137.76,0.33025793]
[1767778299193,6.5324,137.88,137.76,0.33025793]
[1767778299496,108.1461,137.88,137.76,6.86785793]
[1767778299695,108.1461,137.88,137.77,0.33025793]
[1767778300299,6.5324,137.88,137.78,0.33025793]
[1767778300595,6.5324,137.88,137.75,101.7094]
[1767778300596,101.6671,137.81,137.71,0.33025793]
[1767778301598,108.2028,137.81,137.71,0.33025793]
[1767778302401,0.05374695,137.77,137.71,0.33025793]
[1767778306399,101.7171,137.74,137.63,0.33025793]
[1767778306602,101.7109,137.75,137.63,0.33025793]
[1767778306603,101.7103,137.75,137.63,0.33025793]
[1767778307402,0.04909212,137.7,137.63,0.33025793]
[1767778307601,0.04909212,137.7,137.64,0.33025793]
[1767778309995,6.5392,137.74,137.64,0.33025793]
[1767778311300,6.5412,137.7,137.6,0.33025793]
[1767778311824,101.7569,137.69,137.57,6.87705793]
[1767778312801,0.04941062,137.64,137.57,6.87705793]
[1767778313110,101.7466,137.7,137.62,0.04993367]
[1767778313490,101.7466,137.7,137.59,0.33025793]
[1767778313802,6.542,137.68,137.59,0.33025793]
[1767778314001,101.7593,137.69,137.59,0.33025793]
[1767778314403,101.7593,137.69,137.62,0.04938024]
[1767778314901,101.7466,137.7,137.62,0.04938024]
[1767778315506,3.8005512,137.71,137.62,0.04938024]
[1767778316003,6.5411,137.7,137.6,6.87555793]
[1767778316199,6.5411,137.7,137.61,0.33025793]
[1767778316403,101.7486,137.7,137.58,0.33025793]
[1767778316603,0.05387143,137.66,137.58,0.33025793]
[1767778316805,0.05387143,137.66,137.58,6.5462]
[1767778317004,0.05387143,137.66,137.59,0.33025793]
[1767778317207,101.7245,137.73,137.6,0.33025793]
[1767778318104,6.5405,137.71,137.6,6.87545793]
[1767778318306,101.7326,137.72,137.6,6.87545793]
[1767778319100,108.2643,137.73,137.61,6.87485793]
[1767778319405,108.2643,137.73,137.62,0.33025793]
[1767778319610,101.7107,137.75,137.62,0.33025793]
[1767778319906,101.7272,137.73,137.62,0.33025793]
[1767778320699,6.5396,137.73,137.66,0.05266708]
[1767778321606,101.747,137.7,137.59,0.30490213]
[1767778322912,6.541,137.7,137.6,0.31345092]
[1767778323117,101.7465,137.7,137.6,0.31345092]
[1767778323911,6.5416,137.69,137.6,0.31345092]
[1767778324216,3.8005512,137.73,137.61,0.31345092]
[1767778324412,6.5406,137.71,137.61,0.31345092]
[1767778324610,0.04923145,137.66,137.63,0.04722644]
[1767778324906,10.3401512,137.73,137.63,0.36067736]
[1767778325108,6.5396,137.73,137.63,0.36067736]
[1767778325301,6.5396,137.73,137.63,0.31345092]
[1767778325501,6.5396,137.73,137.64,0.31345092]
[1767778325708,6.5386,137.75,137.64,0.31345092]
[1767778326115,101.7104,137.75,137.67,0.05499017]
[1767778327018,101.7104,137.75,137.6,85.62]
[1767778327019,101.766,137.68,137.56,0.31345092]
[1767778327514,6.5423,137.67,137.57,0.31345092]
[1767778328215,6.5423,137.67,137.57,6.86005092]
[1767778328417,6.5415,137.69,137.58,0.31345092]
[1767778328913,107.90048888,137.74,137.55,0.31345092]
[1767778328914,101.7809,137.66,137.55,0.31345092]
[1767778329126,101.7631,137.68,137.55,0.31345092]
[1767778329810,101.7631,137.68,137.57,0.31345092]
[1767778330314,6.542,137.68,137.58,0.31345092]
[1767778330615,101.7323,137.72,137.6,0.31345092]
[1767778331018,101.7323,137.72,137.6,6.85865092]
[1767778331419,101.7323,137.72,137.61,0.31345092]
[1767778331916,101.7323,137.72,137.65,0.04813993]
[1767778332126,108.2663,137.73,137.65,0.04813993]
[1767778332312,101.7265,137.73,137.65,0.04813993]
[1767778333431,6.5401,137.72,137.65,0.04813993]
[1767778333719,6.5381,137.76,137.65,0.04813993]
[1767778333915,101.6949,137.77,137.65,0.31345092]
[1767778335127,6.5387,137.75,137.7,0.05090972]
[1767778335419,101.6949,137.77,137.7,0.05090972]
[1767778335420,102.93849192,137.8,137.7,0.05090972]
[1767778335919,102.93849192,137.8,137.69,0.31345092]
[1767778336323,6.5369,137.79,137.74,0.05284322]
[1767778336518,1.26389192,137.8,137.74,0.05284322]
[1767778337027,1.26389192,137.8,137.66,101.771]
[1767778337028,101.7112,137.75,137.64,0.31345092]
[1767778337325,101.734,137.72,137.6,0.31345092]
[1767778337521,6.5422,137.68,137.57,0.31345092]
[1767778338729,6.5426,137.67,137.57,0.31345092]
[1767778339226,108.3115,137.67,137.54,108.72435092]
[1767778339430,108.3115,137.67,137.55,0.31345092]
[1767778339926,6.5426,137.67,137.55,6.86095092]
[1767778341032,6.5426,137.67,137.56,0.31345092]
[1767778341636,6.5442,137.63,137.52,0.31345092]
[1767778343829,6.5442,137.63,137.51,6.5496]
[1767778343830,108.3278,137.65,137.53,6.86225092]
[1767778344026,6.5433,137.65,137.53,6.86225092]
[1767778347039,108.3352,137.64,137.54,0.31345092]
[1767778347635,101.7912,137.64,137.5,0.31345092]
[1767778347830,6.5469,137.58,137.5,0.31345092]
[1767778348032,6.5469,137.58,137.48,13.83739035]
[1767778348331,6.5469,137.58,137.47,0.31345092]
[1767778348332,101.8969,137.5,137.38,0.31345092]
[1767778348532,6.551,137.49,137.38,0.31345092]
[1767778348728,101.8957,137.5,137.38,0.31345092]
[1767778348935,101.8912,137.51,137.38,0.31345092]
[1767778349128,101.897,137.5,137.36,6.5569]
[1767778349325,108.06488888,137.52,137.38,101.9826]
[1767778349326,101.8833,137.52,137.38,101.9826]
[1767778349530,101.8891,137.51,137.38,0.31345092]
[1767778349726,6.18018888,137.53,137.39,101.9756]
[1767778349937,101.8463,137.57,137.44,0.31345092]
[1767778350328,6.5479,137.55,137.44,6.86615092]
[1767778350725,6.547,137.57,137.45,6.86575092]
[1767778350939,6.547,137.57,137.45,108.79455092]
[1767778351136,6.18018888,137.59,137.46,102.23385092]
[1767778351326,6.18018888,137.59,137.47,0.31345092]
[1767778351837,114.55518888,137.59,137.47,6.86505092]
[1767778352039,12.72628888,137.59,137.47,6.86505092]
[1767778352736,12.72628888,137.59,137.47,108.78125092]
[1767778352938,6.5451,137.61,137.48,108.90676404]
[1767778353840,114.52298888,137.63,137.5,108.89226404]
[1767778354042,101.8165,137.61,137.48,101.9088]
[1767778354232,101.8165,137.61,137.47,102.36376404]
[1767778354434,101.8165,137.61,137.48,0.44756404]
[1767778355645,6.5456,137.6,137.48,6.99846404]
[1767778356945,108.3665,137.6,137.48,6.99846404]
[1767778358142,6.5456,137.6,137.49,6.99796404]
[1767778358339,6.18018888,137.63,137.5,0.44756404]
[1767778358741,6.18018888,137.63,137.51,0.44756404]
[1767778358944,101.8362,137.58,137.45,0.44756404]
[1767778359143,101.8537,137.56,137.45,0.44756404]
[1767778360639,108.4012,137.56,137.45,0.44756404]
[1767778361041,6.5493,137.53,137.42,0.44756404]
[1767778361445,101.8362,137.58,137.45,101.9313]
[1767778361648,6.5471,137.57,137.47,6.99926404]
[1767778361946,0.05499922,137.53,137.5,0.04794052]
[1767778363251,6.5468,137.58,137.5,0.04794052]
[1767778363743,6.5468,137.58,137.48,6.99846404]
[1767778363948,108.3981,137.56,137.43,102.39356404]
[1767778364141,6.5478,137.56,137.44,0.44756404]
[1767778364343,6.5478,137.56,137.44,102.38646404]
[1767778364649,6.5478,137.56,137.48,0.05517108]
[1767778366352,101.8132,137.61,137.48,0.50273512]
[1767778366849,107.97448888,137.64,137.49,0.44756404]
[1767778367240,101.8132,137.61,137.53,0.05423896]
[1767778367749,6.5463,137.59,137.49,6.99806404]
[1767778367953,6.5463,137.59,137.49,0.44756404]
[1767778368846,6.5463,137.59,137.41,101.9585]
[1767778368847,101.8651,137.54,137.43,0.44756404]
[1767778369045,108.03108888,137.56,137.43,0.44756404]
[1767778370050,6.5486,137.54,137.44,6.5529]
[1767778370844,12.72788888,137.56,137.44,6.5529]
[1767778371752,12.72788888,137.56,137.44,7.00046404]
[1767778371959,12.72788888,137.56,137.45,6.5524]
[1767778372160,6.5477,137.56,137.45,0.44756404]
[1767778372563,6.5477,137.56,137.46,6.5519]
[1767778373265,6.5482,137.55,137.45,0.44756404]
[1767778373654,101.8802,137.52,137.39,0.44756404]
[1767778373858,101.8942,137.51,137.39,0.44756404]
[1767778374452,101.8942,137.51,137.39,7.00276404]
[1767778374453,6.55,137.51,137.39,7.00276404]
[1767778374763,101.8592,137.55,137.41,0.44756404]
[1767778375362,101.8653,137.54,137.42,7.00156404]
[1767778375567,101.8725,137.53,137.42,0.44756404]
[1767778375866,6.5491,137.53,137.42,7.00136404]
[1767778376559,6.5481,137.55,137.44,0.44756404]
[1767778377562,6.5481,137.55,137.45,6.5525]
[1767778378068,6.5472,137.57,137.46,6.99956404]
[1767778378273,108.00428888,137.6,137.47,0.44756404]
[1767778378562,101.8731,137.53,137.41,0.44756404]
[1767778378961,6.5501,137.51,137.41,7.00186404]
[1767778380269,6.5489,137.53,137.42,7.00126404]
[1767778381074,12.72808888,137.56,137.45,0.44756404]
[1767778381271,107.97298888,137.64,137.48,0.44756404]
[1767778381861,6.5463,137.59,137.49,7.18466085]
[1767778382574,6.5463,137.59,137.5,0.63416085]
[1767778383469,6.5463,137.59,137.4,0.63416085]
[1767778383470,1.46,137.59,137.4,0.63416085]
[1767778383669,101.8701,137.54,137.42,7.18806085]
[1767778384775,6.5497,137.52,137.42,7.18806085]
[1767778385572,0.05170461,137.48,137.46,0.05413486]
[1767778386266,101.8617,137.55,137.46,0.05413486]
[1767778386464,6.5487,137.54,137.46,0.05413486]
[1767778386659,6.5487,137.54,137.42,102.58196085]
[1767778386864,6.5487,137.54,137.43,0.5639072]
[1767778387562,6.5487,137.54,137.44,7.1167072]
[1767778387868,6.5477,137.56,137.47,0.05451308]
[1767778388269,6.5477,137.56,137.46,0.5639072]
[1767778388666,3.81259543,137.51,137.38,0.5639072]
[1767778388976,105.70269543,137.51,137.38,0.5639072]
[1767778389171,6.5507,137.5,137.39,0.5639072]
[1767778389671,101.8679,137.54,137.42,0.5639072]
[1767778389672,105.68049543,137.54,137.42,0.5639072]
[1767778389870,5.24721521,137.53,137.42,0.5639072]
[1767778390075,5.24721521,137.52,137.42,0.5639072]
[1767778390275,5.24721521,137.51,137.42,0.5639072]
[1767778390465,101.8679,137.54,137.42,0.5639072]
[1767778390667,5.24910131,137.53,137.44,0.5639072]
[1767778390868,5.24910131,137.52,137.44,0.5639072]
[1767778391066,5.24910131,137.51,137.44,0.5639072]
[1767778391373,6.5487,137.54,137.45,0.5639072]
[1767778391571,5.25220423,137.53,137.45,0.5639072]
[1767778391771,6.5487,137.54,137.45,0.5639072]
[1767778391772,5.25220423,137.52,137.45,0.5639072]
[1767778392071,6.5487,137.54,137.45,0.5639072]
[1767778392287,5.25500139,137.53,137.46,0.5639072]
[1767778392572,6.5476,137.56,137.46,0.5639072]
[1767778392777,5.25526334,137.55,137.46,0.5639072]
[1767778392971,5.25526334,137.54,137.46,0.5639072]
[1767778393170,6.5476,137.56,137.46,0.5639072]
[1767778393378,5.25782842,137.55,137.46,0.5639072]
[1767778393582,101.8725,137.53,137.41,0.5639072]
[1767778393780,101.8873,137.51,137.41,0.5639072]
[1767778394086,5.25782842,137.5,137.41,0.5639072]
[1767778394277,5.25782842,137.49,137.41,0.5639072]
[1767778394579,6.5495,137.52,137.41,0.5639072]
[1767778394876,5.25606319,137.51,137.41,0.5639072]
[1767778395073,5.25606319,137.5,137.41,0.5639072]
[1767778395274,6.5495,137.52,137.41,7.1182072]
[1767778395275,5.25606319,137.49,137.41,7.1182072]
[1767778395467,6.5495,137.52,137.41,7.1182072]
[1767778395667,5.25542018,137.51,137.41,7.1182072]
[1767778395865,5.25542018,137.5,137.41,7.1182072]
[1767778396070,5.25542018,137.49,137.41,7.1182072]
[1767778396273,6.5495,137.52,137.41,7.1182072]
[1767778396579,5.25525725,137.51,137.41,7.1182072]
[1767778396778,5.25525725,137.5,137.42,0.5639072]
[1767778397081,6.5495,137.52,137.42,0.5639072]
[1767778397271,5.25529962,137.51,137.42,0.5639072]
[1767778397579,5.25529962,137.5,137.42,0.5639072]
[1767778397767,6.5495,137.52,137.42,0.5639072]
[1767778397965,5.25529894,137.51,137.42,0.5639072]
[1767778398169,105.72449543,137.48,137.37,0.5639072]
[1767778398378,5.25529894,137.47,137.37,0.5639072]
[1767778398573,5.25529894,137.46,137.37,0.5639072]
[1767778398775,5.25529894,137.45,137.37,0.5639072]
[1767778398974,105.72449543,137.48,137.37,0.5639072]
[1767778399170,101.9282,137.46,137.34,86.2839072]
[1767778399377,5.25548768,137.45,137.34,86.2839072]
[1767778399676,101.9282,137.46,137.34,86.2839072]
[1767778399879,5.25242775,137.45,137.34,86.2839072]
[1767778400080,101.9282,137.46,137.34,86.2839072]
[1767778400278,6.5534,137.44,137.34,92.8417072]
[1767778400469,105.72449543,137.48,137.35,0.5639072]
[1767778400670,5.24929855,137.47,137.37,0.5639072]
[1767778400869,5.24929855,137.46,137.37,0.5639072]
[1767778401073,3.81259543,137.48,137.37,0.5639072]
[1767778401274,5.24749416,137.47,137.37,0.5639072]
[1767778401481,5.24749416,137.46,137.37,0.5639072]
[1767778401781,10.36409543,137.48,137.38,6.5558]
[1767778401983,5.24748885,137.47,137.38,6.5558]
[1767778402283,5.24748885,137.46,137.38,6.5558]
[1767778402478,6.552,137.47,137.37,0.5639072]
[1767778402677,5.24654898,137.46,137.37,0.5639072]
[1767778402878,6.552,137.47,137.37,0.5639072]
[1767778403081,5.24651613,137.46,137.37,0.5639072]
[1767778403280,6.552,137.47,137.37,0.5639072]
[1767778403482,5.24591406,137.46,137.37,7.1201072]
[1767778403683,6.551,137.49,137.38,0.5639072]
[1767778403988,5.24615163,137.48,137.38,0.5639072]
[1767778404179,5.24615163,137.48,137.36,0.5639072]
[1767778404180,5.2456801,137.47,137.36,0.5639072]
[1767778404385,105.70519543,137.51,137.39,0.5639072]
[1767778404583,5.26922747,137.5,137.39,0.5639072]
[1767778404773,5.26922747,137.49,137.39,0.5639072]
[1767778405084,5.26922747,137.48,137.39,0.5639072]
[1767778405282,105.70519543,137.51,137.39,0.5639072]
[1767778405483,5.26913973,137.5,137.39,0.5639072]
[1767778405686,11.82013973,137.49,137.39,7.1192072]
[1767778405886,5.26913973,137.48,137.39,7.1192072]
[1767778408780,5.26913973,137.48,137.35,0.5639072]
[1767778408984,107.18803973,137.47,137.35,7.1212072]
[1767778409187,5.26913973,137.46,137.35,7.1212072]
[1767778409387,6.552,137.47,137.36,7.1206072]
[1767778409593,5.26730612,137.46,137.36,7.1206072]
[1767778409885,105.72719543,137.48,137.36,7.1206072]
[1767778410083,5.2679146,137.47,137.37,0.5639072]
[1767778410284,5.2679146,137.46,137.37,0.5639072]
[1767778410476,105.72719543,137.48,137.37,0.5639072]
[1767778410672,6.5524,137.46,137.37,0.5639072]
[1767778411081,10.36409543,137.48,137.37,7.1201072]
[1767778411389,5.26621143,137.47,137.37,0.5639072]
[1767778411585,105.70519543,137.51,137.38,0.5639072]
[1767778411889,5.26691794,137.5,137.38,0.5639072]
[1767778412091,6.5505,137.5,137.4,6.88631217]
[1767778412487,105.66529543,137.56,137.43,0.33151217]
[1767778412689,5.27122106,137.55,137.43,0.33151217]
[1767778412987,101.8439,137.57,137.44,0.33151217]
[1767778413183,11.82000118,137.56,137.46,6.5519]
[1767778413387,5.27230118,137.55,137.46,6.5519]
[1767778413689,5.27230118,137.55,137.46,6.88341217]
[1767778414485,5.27230118,137.55,137.49,0.04615381]
[1767778414681,101.8549,137.56,137.49,0.04615381]
[1767778414889,107.12999717,137.55,137.49,0.04615381]
[1767778415091,5.27239717,137.54,137.49,0.04615381]
[1767778415294,5.27239717,137.53,137.43,0.33151217]
[1767778415487,5.27239717,137.52,137.43,0.33151217]
[1767778415689,0.05193714,137.53,137.43,0.33151217]
[1767778415987,5.27214317,137.52,137.43,0.33151217]
[1767778416296,101.8576,137.55,137.43,0.33151217]
[1767778416488,5.27220684,137.54,137.43,0.33151217]
[1767778416688,0.04710721,137.49,137.43,0.33151217]
[1767778416888,0.04710721,137.49,137.43,6.88481217]
[1767778418185,6.5482,137.55,137.45,0.33151217]
[1767778419294,101.8912,137.51,137.4,0.33151217]
[1767778419486,101.9029,137.49,137.36,0.33151217]
[1767778419682,5.27172012,137.48,137.36,0.33151217]
[1767778419880,101.9029,137.49,137.36,0.33151217]
[1767778420079,5.27175139,137.48,137.36,0.33151217]
[1767778420284,101.9029,137.49,137.36,0.33151217]
[1767778420481,5.27133687,137.48,137.36,0.33151217]
[1767778420697,6.5518,137.47,137.37,6.88781217]
[1767778421287,6.551,137.49,137.38,6.88731217]
[1767778421584,6.551,137.49,137.38,0.33151217]
[1767778422597,6.551,137.49,137.39,6.88681217]
[1767778423599,6.5499,137.51,137.4,6.88611217]
[1767778423898,5.27260647,137.5,137.4,6.88611217]
[1767778424108,6.5499,137.51,137.4,6.88611217]
[1767778424297,5.27261683,137.5,137.4,6.88611217]
[1767778424496,6.5499,137.51,137.4,6.88611217]
[1767778424804,5.27263457,137.5,137.4,6.88611217]
[1767778425002,6.5499,137.51,137.4,6.88611217]
[1767778425205,5.27305746,137.5,137.4,6.88611217]
[1767778425397,6.5499,137.51,137.4,6.88611217]
[1767778425598,5.27303101,137.5,137.4,6.88611217]
[1767778425799,6.5499,137.51,137.4,6.88611217]
[1767778426000,5.27328923,137.5,137.4,6.88611217]
[1767778426197,6.5499,137.51,137.4,6.88611217]
[1767778426393,5.27329751,137.5,137.42,0.33151217]
[1767778426597,6.5506,137.5,137.42,0.33151217]
[1767778427204,105.68979543,137.53,137.42,0.33151217]
[1767778427400,0.05065027,137.47,137.42,0.33151217]
[1767778427604,0.05065027,137.47,137.45,0.05242104]
[1767778427800,0.05065027,137.47,137.38,101.9761]
[1767778427801,149.9567,137.41,137.31,2.46754788]
[1767778428108,105.80139543,137.38,137.25,0.33151217]
[1767778428406,10.36859543,137.38,137.26,0.33151217]
[1767778428613,3.81259543,137.38,137.26,0.33151217]
[1767778429012,3.81259543,137.38,137.27,0.33151217]
[1767778429208,232.5218,137.41,137.29,102.37861217]
[1767778429209,3.81259543,137.41,137.29,102.37861217]
[1767778429407,101.9493,137.43,137.3,0.33151217]
[1767778429610,5.26429961,137.42,137.3,0.33151217]
[1767778429816,6.5537,137.43,137.31,0.33151217]
[1767778430000,5.26432625,137.42,137.31,0.33151217]
[1767778430205,6.5537,137.43,137.31,0.33151217]
[1767778430406,5.2615258,137.42,137.31,0.33151217]
[1767778430701,6.5537,137.43,137.31,0.33151217]
[1767778431008,5.26117997,137.42,137.31,0.33151217]
[1767778431203,112.32909543,137.41,137.28,102.38841217]
[1767778431410,112.32909543,137.41,137.28,0.33151217]
[1767778431910,10.36749543,137.41,137.28,108.94591217]
[1767778432313,10.36749543,137.41,137.28,6.89181217]
[1767778433107,10.36749543,137.41,137.29,0.33151217]
[1767778433810,3.81259543,137.41,137.29,0.33151217]
[1767778434012,108.5012,137.43,137.29,0.33151217]
[1767778434212,5.25494154,137.42,137.29,0.33151217]
[1767778434413,108.5012,137.43,137.29,0.33151217]
[1767778434716,6.5537,137.43,137.3,0.33151217]
[1767778435108,6.5537,137.43,137.31,0.33151217]
[1767778436214,3.81259543,137.44,137.33,0.33151217]
[1767778436517,112.29159543,137.46,137.33,0.33151217]
[1767778436703,5.31640428,137.45,137.33,0.33151217]
[1767778436904,10.36529543,137.46,137.34,0.33151217]
[1767778437103,101.9125,137.48,137.35,0.33151217]
[1767778437318,101.9125,137.48,137.36,0.33151217]
[1767778437717,101.9125,137.48,137.4,0.04587285]
[1767778438418,6.5523,137.46,137.4,0.04587285]
[1767778439012,108.4638,137.48,137.4,0.04587285]
[1767778439212,5.31997667,137.47,137.4,0.04587285]
[1767778439415,108.4638,137.48,137.4,0.04587285]
[1767778439614,5.32022725,137.47,137.4,0.04587285]
[1767778439813,108.4638,137.48,137.4,0.04587285]
[1767778440014,5.32022725,137.47,137.4,0.04587285]
[1767778440214,101.9323,137.45,137.36,0.33151217]
[1767778440417,101.98559106,137.45,137.36,0.33151217]
[1767778440818,101.9323,137.45,137.36,0.33151217]
[1767778441120,6.5531,137.45,137.36,0.33151217]
[1767778441622,0.05424654,137.42,137.36,0.33151217]
[1767778443219,6.5519,137.47,137.37,0.31710366]
[1767778443918,108.4527,137.49,137.38,0.31710366]
[1767778444221,6.5508,137.49,137.38,0.31710366]
[1767778444518,6.5508,137.49,137.42,0.0523263]
[1767778445222,101.9735654,137.47,137.38,0.31710366]
[1767778445417,0.0545654,137.47,137.38,0.31710366]
[1767778445619,101.9037,137.49,137.38,0.31710366]
[1767778445820,108.4546,137.49,137.38,0.31710366]
[1767778446522,0.0497045,137.45,137.38,0.31710366]
[1767778448624,101.9855045,137.45,137.35,0.31710366]
[1767778449032,101.9358,137.45,137.35,0.31710366]
[1767778449222,6.5537,137.43,137.35,0.31710366]
[1767778449415,0.04783308,137.41,137.35,0.31710366]
[1767778451226,6.60283308,137.41,137.33,85.78]
[1767778451426,101.9687,137.4,137.33,85.78]
[1767778452016,6.5556,137.39,137.33,85.78]
[1767778452222,101.9628,137.41,137.33,85.78]
[1767778452424,0.04821054,137.38,137.33,85.78]
[1767778454428,0.04821054,137.38,137.29,0.31710366]
[1767778454932,101.9719,137.4,137.29,0.31710366]
[1767778455129,0.05563725,137.35,137.29,0.31710366]
[1767778457231,0.05563725,137.35,137.28,6.5604]
[1767778457530,0.05563725,137.35,137.27,0.71920366]
[1767778457923,6.5582,137.34,137.27,0.71920366]
[1767778458129,6.5582,137.34,137.21,102.1067]
[1767778458130,102.0211,137.33,137.21,0.31710366]
[1767778458430,108.21628152,137.35,137.23,0.31710366]
[1767778458630,6.5581,137.34,137.24,0.31710366]
[1767778458926,108.18668152,137.39,137.28,0.05210689]
[1767778459133,6.5562,137.38,137.28,0.05210689]
[1767778459520,6.5562,137.38,137.27,6.561]
[1767778459722,6.5583,137.34,137.25,0.31710366]
[1767778460020,102.0088,137.35,137.25,0.31710366]
[1767778460223,102.0143,137.34,137.28,0.05005939]
[1767778460435,102.0208,137.33,137.21,0.31710366]
[1767778460629,0.0509653,137.31,137.21,0.31710366]
[1767778460826,0.0509653,137.31,137.23,0.31710366]
[1767778461029,6.20778152,137.36,137.23,0.31710366]
[1767778461225,6.5576,137.35,137.24,0.31710366]
[1767778461727,101.9842,137.38,137.25,0.31710366]
[1767778462035,0.05206214,137.31,137.25,0.31710366]
[1767778462835,0.05206214,137.31,137.23,6.5629]
[1767778463034,0.05206214,137.31,137.22,0.31710366]
[1767778463230,102.0179,137.34,137.22,0.31710366]
[1767778463429,6.5592,137.32,137.22,0.31710366]
[1767778463632,6.5592,137.32,137.05,102.54540366]
[1767778463633,102.1247,137.19,137.05,102.54540366]
[1767778463936,108.6994,137.18,137.06,0.31710366]
[1767778464427,0.05133894,137.13,137.08,0.31710366]
[1767778464628,6.5646,137.21,137.08,0.31710366]
[1767778464835,102.098,137.23,137.11,0.04921534]
[1767778465030,5.54537637,137.22,137.11,0.04921534]
[1767778465231,102.0662,137.27,137.12,0.31710366]
[1767778465429,102.0662,137.27,137.12,102.49330366]
[1767778465736,108.646,137.25,137.12,6.88560366]
[1767778466037,6.5626,137.25,137.17,0.04800614]
[1767778466339,108.6445,137.25,137.17,0.04800614]
[1767778466532,108.6535,137.24,137.17,0.04800614]
[1767778466724,6.5631,137.24,137.17,0.04800614]
[1767778466928,103.34576149,137.26,137.17,0.04800614]
[1767778467332,103.34576149,137.26,137.12,0.31710366]
[1767778467534,102.083,137.25,137.12,6.88560366]
[1767778467734,102.1211,137.2,137.08,0.31710366]
[1767778468542,108.6859,137.2,137.08,0.31710366]
[1767778469034,102.1025,137.22,137.09,0.31710366]
[1767778469335,108.28958152,137.25,137.1,102.50360366]
[1767778469539,6.20778152,137.25,137.12,102.49040366]
[1767778469831,6.20778152,137.25,137.16,0.04776788]
[1767778469832,108.28908152,137.25,137.16,0.04776788]
[1767778470225,108.28908152,137.25,137.12,0.31710366]
[1767778470437,102.0979,137.23,137.12,0.31710366]
[1767778470835,102.0979,137.23,137.17,0.05266695]
[1767778471231,6.5636,137.23,137.17,0.05266695]
[1767778471741,114.85148152,137.25,137.17,0.05266695]
[1767778472241,108.6537,137.24,137.17,0.05266695]
[1767778472440,102.1001,137.23,137.17,0.05266695]
[1767778472645,0.05028715,137.22,137.12,0.31710366]
[1767778473135,114.85168152,137.25,137.12,0.31710366]
[1767778474045,0.04624638,137.2,137.13,6.5679]
[1767778474338,108.6233,137.28,137.17,0.04834095]
[1767778474535,6.5613,137.28,137.17,0.04834095]
[1767778474739,102.0376,137.31,137.18,0.33223839]
[1767778475131,103.30607582,137.31,137.18,0.33223839]
[1767778476650,6.5603,137.3,137.23,0.04877628]
[1767778476833,108.6046,137.3,137.23,0.04877628]
[1767778479541,6.5603,137.3,137.23,0.04877628]
[1767778480341,108.6033,137.3,137.23,0.04877628]
[1767778480538,108.6033,137.3,137.18,0.33223839]
[1767778480739,0.05346088,137.28,137.18,0.33223839]
[1767778481239,108.6033,137.3,137.18,0.33223839]
[1767778481646,108.6033,137.3,137.18,6.89743839]
[1767778481847,0.05372061,137.25,137.19,0.33223839]
[1767778482637,0.05372061,137.25,137.15,86.23223839]
[1767778483038,6.5621,137.26,137.15,86.23223839]
[1767778483441,0.05055408,137.21,137.16,0.33223839]
[1767778484647,6.5621,137.26,137.17,0.05268693]
[1767778485043,102.0755,137.26,137.13,6.90003839]
[1767778485245,108.28838152,137.25,137.13,6.90003839]
[1767778485749,6.563,137.24,137.14,0.33223839]
[1767778485953,6.563,137.24,137.18,0.04717433]
[1767778486956,6.563,137.24,137.12,85.9]
[1767778486957,0.04712517,137.22,137.12,85.9]
[1767778487348,102.0963,137.23,137.12,85.9]
[1767778487549,6.5644,137.21,137.12,86.23223839]
[1767778488354,0.0533223,137.18,137.12,86.23223839]
[1767778488759,0.0533223,137.18,137.12,85.9]
[1767778491860,0.0533223,137.18,137.12,86.23223839]
[1767778492759,0.0533223,137.18,137.13,0.33223839]
[1767778493453,6.5639,137.22,137.14,0.04677172]
[1767778493956,6.5629,137.24,137.14,0.37901011]
[1767778494151,6.5629,137.24,137.15,0.33223839]
[1767778494860,6.5629,137.24,137.18,0.05592603]
[1767778495061,6.562,137.26,137.18,0.05592603]
[1767778495460,6.562,137.26,137.16,0.33223839]
[1767778495962,6.562,137.26,137.21,0.04866865]
[1767778497354,6.561,137.28,137.21,0.04866865]
[1767778498164,5.53010034,137.27,137.21,0.04866865]
[1767778498362,6.561,137.28,137.21,0.04866865]
[1767778498563,5.53013291,137.27,137.21,0.04866865]
[1767778498755,1.26847582,137.31,137.21,0.38090704]
[1767778498961,102.0169,137.34,137.22,0.33223839]
[1767778499160,5.53616239,137.33,137.22,0.33223839]
[1767778499361,102.0169,137.34,137.22,0.33223839]